Workbook

Sheet Лист1
B1: IB | E1: Льгота | I1: Курс рубля | M1: Плоти нолог | O1: Льгота
E2: Сумма с шагом -0.85 за комиссию | M2: IB
B3: Сумма | C3: Дивы до и после налога | E3: 20 | M3: Рублей на счету | N3: Рублей было
B4: 19.88 | C4: =B4*0.02 -> 0.3976 | E4: =E3*0.9915 -> 19.83 | F4: =E4*0.02 -> 0.3966 | I4: 75 | M4: Разница в рублях | N4: Налог
A5: 1 год | B5: =B4*0.08 -> 1.5904 | C5: =C4*0.85 -> 0.33796 | E5: =E4*0.08 -> 1.5864 | F5: =F4*0.85 -> 0.33711 | M5: Итог в рублях | O5: Итог в рублях
B6: =B4+B5+C5 -> 21.80836 | E6: =E4+E5+F5 -> 21.75351 | M6: Итог в долларах | O6: Итог в долларах
E7: =E6*0.9915 -> 21.56860517 | F7: =E7*0.02 -> 0.4313721033 | I7: =I4*1.07 -> 80.25 | M7: Разница в долларах | N7: Налог
A8: 2 год | B8: =B6*0.08 -> 1.7446688 | C8: =B6*0.02 -> 0.4361672 | E8: =E7*0.08 -> 1.725488413 | F8: =F7*0.85 -> 0.3666662878 | M8: Итог в долларах
B9: =B6+B8+C9-0.12 -> 23.80377092 | C9: =C8*0.85 -> 0.37074212 | E9: =E7+E8+F8 -> 23.66075987 | M9: Итог в рублях
E10: =E9*0.9915 -> 23.45964341 | F10: =E10*0.02 -> 0.4691928681 | I10: =I7*1.07 -> 85.8675
A11: 3 год | B11: =B9*0.08 -> 1.904301674 | C11: =B9*0.02 -> 0.4760754184 | E11: =E10*0.08 -> 1.876771473 | F11: =F10*0.85 -> 0.3988139379
B12: =B9+B11+C12-0.12 -> 25.9927367 | C12: =C11*0.85 -> 0.4046641056 | E12: =E10+E11+F11 -> 25.73522882 | M12: =B12*I13 -> 2388.166511 | N12: 1500
E13: =E12*0.9915 -> 25.51647937 | F13: =E13*0.02 -> 0.5103295875 | I13: =I10*1.07 -> 91.878225 | M13: =M12-N12 -> 888.1665108 | N13: =M13*0.13 -> 115.4616464
A14: 4 год | B14: =B12*0.08 -> 2.079418936 | C14: =B12*0.02 -> 0.519854734 | E14: =E13*0.08 -> 2.04131835 | F14: =F13*0.85 -> 0.4337801493 | M14: =M12-N13 -> 2272.704864 | O14: =E12*I13 -> 2364.507144
B15: =B12+B14+C15-0.12 -> 28.39403216 | C15: =C14*0.85 -> 0.4418765239 | E15: =E13+E14+F14 -> 27.99157787 | M15: =M14/I13 -> 24.73605541 | O15: =E12 -> 25.73522882
E16: =E15*0.9915 -> 27.75364946 | F16: =E16*0.02 -> 0.5550729892 | I16: =I13*1.07 -> 98.30970075 | M16: =B12-20 -> 5.992736699 | N16: =M16*0.13 -> 0.7790557709
A17: 5 год | B17: 2.271522573 | C17: =B15*0.02 -> 0.5678806432 | E17: =E16*0.08 -> 2.220291957 | F17: =F16*0.85 -> 0.4718120408 | M17: =B12-N16 -> 25.21368093
B18: =B15+B17+C18-0.12 -> 31.02825328 | C18: =C17*0.85 -> 0.4826985467 | E18: =E16+E17+F17 -> 30.44575346 | M18: =M17*I13 -> 2316.588249
E19: =E18*0.9915 -> 30.18696455 | F19: =E19*0.02 -> 0.6037392911 | I19: =I16*1.07 -> 105.1913798
A20: 6 год | B20: 2.482260262 | C20: =B18*0.02 -> 0.6205650656 | E20: =E19*0.08 -> 2.414957164 | F20: =F19*0.85 -> 0.5131783974
B21: =B18+B20+C21-0.12 -> 33.91799385 | C21: =C20*0.85 -> 0.5274803057 | E21: =E19+E20+F20 -> 33.11510011
E22: =E21*0.9915 -> 32.83362176 | F22: =E22*0.02 -> 0.6566724353 | I22: =I19*1.07 -> 112.5547764
A23: 7 год | B23: 2.713439508 | C23: =B21*0.02 -> 0.6783598769 | E23: =E22*0.08 -> 2.626689741 | F23: =F22*0.85 -> 0.55817157
B24: =B21+B23+C24-0.12 -> 37.08803925 | C24: =C23*0.85 -> 0.5766058954 | E24: =E22+E23+F23 -> 36.01848307
E25: =E24*0.9915 -> 35.71232597 | F25: =E25*0.02 -> 0.7142465194 | I25: =I22*1.07 -> 120.4336107
A26: 8 год | B26: 2.96704314 | C26: =B24*0.02 -> 0.741760785 | E26: =E25*0.08 -> 2.856986078 | F26: =F25*0.85 -> 0.6071095415
B27: =B24+B26+C27-0.12 -> 40.56557906 | C27: =C26*0.85 -> 0.6304966672 | E27: =E25+E26+F26 -> 39.17642159
E28: =E27*0.9915 -> 38.843422 | F28: =E28*0.02 -> 0.7768684401 | I28: =I25*1.07 -> 128.8639635
A29: 9 год | B29: 3.245246325 | C29: =B27*0.02 -> 0.8113115811 | E29: =E28*0.08 -> 3.10747376 | F29: =F28*0.85 -> 0.6603381741
B30: =B27+B29+C30-0.12 -> 44.38044023 | C30: =C29*0.85 -> 0.689614844 | E30: =E28+E29+F29 -> 42.61123394
E31: =E30*0.9915 -> 42.24903845 | F31: =E31*0.02 -> 0.844980769 | I31: =I28*1.07 -> 137.8844409
A32: 10 год | B32: 3.550435218 | C32: =B30*0.02 -> 0.8876088045 | E32: =E31*0.08 -> 3.379923076 | F32: =F31*0.85 -> 0.7182336537
B33: =B30+B32+C33-0.12 -> 48.56534293 | C33: =C32*0.85 -> 0.7544674838 | E33: =E31+E32+F32 -> 46.34719518 | M33: =B33*I34 -> 7165.153519 | N33: 1500
E34: =E33*0.9915 -> 45.95324402 | F34: =E34*0.02 -> 0.9190648804 | I34: =I31*1.07 -> 147.5363518 | M34: =M33-N33 -> 5665.153519 | N34: =M34*0.13 -> 736.4699575
A35: 11 год | B35: 3.885227434 | C35: =B33*0.02 -> 0.9713068585 | E35: =E34*0.08 -> 3.676259522 | F35: =F34*0.85 -> 0.7812051484 | M35: =M33-N34 -> 6428.683562 | O35: =E33*I34 -> 6837.896093
B36: =B33+B35+C36-0.12 -> 53.15618119 | C36: =C35*0.85 -> 0.8256108298 | E36: =E34+E35+F35 -> 50.41070869 | M36: =M35/I34 -> 43.57355651 | O36: =E33 -> 46.34719518
E37: =E36*0.9915 -> 49.98221767 | F37: =E37*0.02 -> 0.9996443533 | I37: =I34*1.07 -> 157.8638964 | M37: =B33-20 -> 28.56534293 | N37: =M37*0.13 -> 3.713494581
A38: 12 год | B38: 4.252494495 | C38: =B36*0.02 -> 1.063123624 | E38: =E37*0.08 -> 3.998577413 | F38: =F37*0.85 -> 0.8496977003 | M38: =B33-N37 -> 44.85184835
B39: =B36+B38+C39-0.12 -> 58.19233077 | C39: =C38*0.85 -> 0.9036550802 | E39: =E37+E38+F38 -> 54.83049278 | M39: =M38*I34 -> 6617.278076
E40: =E39*0.9915 -> 54.36443359 | F40: =E40*0.02 -> 1.087288672 | I40: =I37*1.07 -> 168.9143692
A41: 13 год | B41: 4.655386461 | C41: =B39*0.02 -> 1.163846615 | E41: =E40*0.08 -> 4.349154687 | F41: =F40*0.85 -> 0.9241953711
B42: =B39+B41+C42-0.12 -> 63.71698685 | C42: =C41*0.85 -> 0.989269623 | E42: =E40+E41+F41 -> 59.63778365
E43: =E42*0.9915 -> 59.13086249 | F43: =E43*0.02 -> 1.18261725 | I43: =I40*1.07 -> 180.738375
A44: 14 год | B44: 5.097358948 | C44: =B42*0.02 -> 1.274339737 | E44: =E43*0.08 -> 4.730468999 | F44: =F43*0.85 -> 1.005224662
B45: =B42+B44+C45-0.12 -> 69.77753458 | C45: =C44*0.85 -> 1.083188776 | E45: =E43+E44+F44 -> 64.86655615
E46: =E45*0.9915 -> 64.31519042 | F46: =E46*0.02 -> 1.286303808 | I46: =I43*1.07 -> 193.3900613
A47: 15 год | B47: 5.582202766 | C47: =B45*0.02 -> 1.395550692 | E47: =E46*0.08 -> 5.145215234 | F47: =F46*0.85 -> 1.093358237
B48: =B45+B47+C48-0.12 -> 76.42595543 | C48: =C47*0.85 -> 1.186218088 | E48: =E46+E47+F47 -> 70.55376389
E49: =E48*0.9915 -> 69.9540569 | F49: =E49*0.02 -> 1.399081138 | I49: =I46*1.07 -> 206.9273656
A50: 16 год | B50: 6.114076434 | C50: =B48*0.02 -> 1.528519109 | E50: =E49*0.08 -> 5.596324552 | F50: =F49*0.85 -> 1.189218967
B51: =B48+B50+C51-0.12 -> 83.71927311 | C51: =C50*0.85 -> 1.299241242 | E51: =E49+E50+F50 -> 76.73960042
E52: =E51*0.9915 -> 76.08731382 | F52: =E52*0.02 -> 1.521746276 | I52: =I49*1.07 -> 221.4122811
A53: 17 год | B53: 6.697541848 | C53: =B51*0.02 -> 1.674385462 | E53: =E52*0.08 -> 6.086985105 | F53: =F52*0.85 -> 1.293484335
B54: =B51+B53+C54-0.12 -> 91.7200426 | C54: =C53*0.85 -> 1.423227643 | E54: =E52+E53+F53 -> 83.46778326
E55: =E54*0.9915 -> 82.7583071 | F55: =E55*0.02 -> 1.655166142 | I55: =I52*1.07 -> 236.9111408
A56: 18 год | B56: =B54*0.08 -> 7.337603408 | C56: =B54*0.02 -> 1.834400852 | E56: =E55*0.08 -> 6.620664568 | F56: =F55*0.85 -> 1.406891221
B57: =B54+B56+C57 -> 100.6168867 | C57: =C56*0.85 -> 1.559240724 | E57: =E55+E56+F56 -> 90.78586289
E58: =E57*0.9915 -> 90.01418305 | F58: =E58*0.02 -> 1.800283661 | I58: =I55*1.07 -> 253.4949207
A59: 19 год | B59: =B57*0.08 -> 8.049350938 | C59: =B57*0.02 -> 2.012337735 | E59: =E58*0.08 -> 7.201134644 | F59: =F58*0.85 -> 1.530241112
B60: =B57+B59+C60 -> 110.3767247 | C60: =C59*0.85 -> 1.710487074 | E60: =E58+E59+F59 -> 98.74555881
E61: =E60*0.9915 -> 97.90622156 | F61: =E61*0.02 -> 1.958124431 | I61: =I58*1.07 -> 271.2395651
A62: 20 год | B62: =B60*0.08 -> 8.830137979 | C62: =B60*0.02 -> 2.207534495 | E62: =E61*0.08 -> 7.832497725 | F62: =F61*0.85 -> 1.664405767
B63: =B60+B62+C63 -> 121.083267 | C63: =C62*0.85 -> 1.876404321 | E63: =E61+E62+F62 -> 107.4031251
E64: =E63*0.9915 -> 106.4901985 | F64: =E64*0.02 -> 2.12980397 | I64: =I61*1.07 -> 290.2263347
A65: 21 год | B65: =B63*0.08 -> 9.686661363 | C65: =B63*0.02 -> 2.421665341 | E65: =E64*0.08 -> 8.519215879 | F65: =F64*0.85 -> 1.810333374
B66: =B63+B65+C66 -> 132.8283439 | C66: =C65*0.85 -> 2.05841554 | E66: =E64+E65+F65 -> 116.8197477
E67: =E66*0.9915 -> 115.8267799 | F67: =E67*0.02 -> 2.316535598 | I67: =I64*1.07 -> 310.5421781
A68: 22 год | B68: =B66*0.08 -> 10.62626752 | C68: =B66*0.02 -> 2.656566879 | E68: =E67*0.08 -> 9.266142391 | F68: =F67*0.85 -> 1.969055258
B69: =B66+B68+C69 -> 145.7126933 | C69: =C68*0.85 -> 2.258081847 | E69: =E67+E68+F68 -> 127.0619775
E70: =E69*0.9915 -> 125.9819507 | F70: =E70*0.02 -> 2.519639015 | I70: =I67*1.07 -> 332.2801306
A71: 23 год | B71: =B69*0.08 -> 11.65701546 | C71: =B69*0.02 -> 2.914253866 | E71: =E70*0.08 -> 10.07855606 | F71: =F70*0.85 -> 2.141693162
B72: =B69+B71+C72 -> 159.8468246 | C72: =C71*0.85 -> 2.477115786 | E72: =E70+E71+F71 -> 138.2021999
E73: =E72*0.9915 -> 137.0274812 | F73: =E73*0.02 -> 2.740549625 | I73: =I70*1.07 -> 355.5397397
A74: 24 год | B74: =B72*0.08 -> 12.78774596 | C74: =B72*0.02 -> 3.196936491 | E74: =E73*0.08 -> 10.9621985 | F74: =F73*0.85 -> 2.329467181
B75: =B72+B74+C75 -> 175.3519665 | C75: =C74*0.85 -> 2.717396017 | E75: =E73+E74+F74 -> 150.3191469
E76: =E75*0.9915 -> 149.0414342 | F76: =E76*0.02 -> 2.980828684 | I76: =I73*1.07 -> 380.4275215
A77: 25 год | B77: =B75*0.08 -> 14.02815732 | C77: =B75*0.02 -> 3.507039331 | E77: =E76*0.08 -> 11.92331473 | F77: =F76*0.85 -> 2.533704381
B78: =B75+B77+C78 -> 192.3611073 | C78: =C77*0.85 -> 2.980983431 | E78: =E76+E77+F77 -> 163.4984533
E79: =E78*0.9915 -> 162.1087164 | F79: =E79*0.02 -> 3.242174329 | I79: =I76*1.07 -> 407.057448
A80: 26 год | B80: =B78*0.08 -> 15.38888858 | C80: =B78*0.02 -> 3.847222146 | E80: =E79*0.08 -> 12.96869732 | F80: =F79*0.85 -> 2.75584818
B81: =B78+B80+C81 -> 211.0201347 | C81: =C80*0.85 -> 3.270138824 | E81: =E79+E80+F80 -> 177.8332619
E82: =E81*0.9915 -> 176.3216792 | F82: =E82*0.02 -> 3.526433584 | I82: =I79*1.07 -> 435.5514694
A83: 27 год | B83: 16.88161078 | C83: 4.220402694 | E83: =E82*0.08 -> 14.10573434 | F83: =F82*0.85 -> 2.997468547
B84: =B81+B83+C84 -> 231.4890878 | C84: =C83*0.85 -> 3.58734229 | E84: =E82+E83+F83 -> 193.4248821
E85: =E84*0.9915 -> 191.7807706 | F85: =E85*0.02 -> 3.835615412 | I85: =I82*1.07 -> 466.0400722
A86: 28 год | B86: 18.51912702 | C86: 4.629781755 | E86: =E85*0.08 -> 15.34246165 | F86: =F85*0.85 -> 3.2602731
B87: =B84+B86+C87 -> 253.9435293 | C87: =C86*0.85 -> 3.935314492 | E87: =E85+E86+F86 -> 210.3835053
E88: =E87*0.9915 -> 208.5952455 | F88: =E88*0.02 -> 4.171904911 | I88: =I85*1.07 -> 498.6628773
A89: 29 год | B89: =B87*0.08 -> 20.31548234 | C89: =B87*0.02 -> 5.078870586 | E89: =E88*0.08 -> 16.68761964 | F89: =F88*0.85 -> 3.546119174
B90: =B87+B89+C90 -> 278.5760516 | C90: =C89*0.85 -> 4.317039998 | E90: =E88+E89+F89 -> 228.8289844
E91: =E90*0.9915 -> 226.883938 | F91: =E91*0.02 -> 4.53767876 | I91: =I88*1.07 -> 533.5692787
A92: 30 год | B92: 22.28608413 | C92: 5.571521032 | E92: =E91*0.08 -> 18.15071504 | F92: =F91*0.85 -> 3.857026946
B93: =B90+B92+C93 -> 305.5979286 | C93: =C92*0.85 -> 4.735792878 | E93: =E91+E92+F92 -> 248.89168 | M93: =B93*I94 -> 174471.703 | N93: 1500
E94: =E93*0.9915 -> 246.7761007 | F94: =E94*0.02 -> 4.935522014 | I94: =I91*1.07 -> 570.9191282 | M94: =M93-N93 -> 172971.703 | N94: =M94*0.13 -> 22486.32139
A95: 31 год | B95: 24.44783429 | C95: 6.111958573 | E95: =E94*0.08 -> 19.74208806 | F95: =F94*0.85 -> 4.195193712 | M95: =M93-N94 -> 151985.3816
B96: =B93+B95+C96 -> 335.2409277 | C96: =C95*0.85 -> 5.195164787 | E96: =E94+E95+F95 -> 270.7133825 | M96: =M95/I94 -> 266.2117524 | O96: =E93 -> 248.89168
E97: =E96*0.9915 -> 268.4123187 | F97: =E97*0.02 -> 5.368246374 | I97: =I94*1.07 -> 610.8834672 | M97: =B93-20 -> 285.5979286 | N97: =M97*0.13 -> 37.12773072 | O97: =O96*I94 -> 142097.021
A98: 32 год | B98: 26.81927422 | C98: 6.704818554 | E98: =E97*0.08 -> 21.4729855 | F98: =F97*0.85 -> 4.563009418 | M98: =B93-N97 -> 268.4701979
B99: =B96+B98+C99 -> 367.7592977 | C99: =C98*0.85 -> 5.699095771 | E99: =E97+E98+F98 -> 294.4483136

Sheet Лист2

Sheet Лист3
